bitfinex/quotes_BTCUSD_20240911
["timestamp","ask_amount","ask_price","bid_price","bid_amount"]
[1726082216987,0.17355,57620.0,57619.0,0.001636]
[1726082217215,0.520651,57620.0,57619.0,0.001636]
[1726082217464,0.601951,57620.0,57619.0,0.001636]
[1726082217683,0.09301179,57623.0,57622.0,0.173544]
[1726082218050,0.09301179,57623.0,57620.0,0.3471]
[1726082218051,0.09301179,57623.0,57620.0,0.173549]
[1726082218286,0.09301179,57623.0,57619.0,0.001636]
[1726082218287,0.09301179,57623.0,57622.0,0.176544]
[1726082218522,0.09301179,57623.0,57622.0,0.173544]
[1726082218762,0.09301179,57623.0,57619.0,0.001636]
[1726082219005,0.09301179,57623.0,57619.0,0.011636]
[1726082219240,0.09301179,57623.0,57622.0,0.173544]
[1726082219483,0.07431179,57625.0,57622.0,0.030518]
[1726082219718,0.001,57623.0,57622.0,0.204062]
[1726082219970,0.001,57623.0,57622.0,0.88524]
[1726082220217,0.02721049,57631.0,57630.0,0.17352]
[1726082220563,0.347006,57636.0,57622.0,0.017518]
[1726082220564,0.01195435,57637.0,57625.0,0.347069]
[1726082220565,0.03916271,57637.0,57625.0,0.347069]
[1726082220771,0.03916271,57637.0,57622.0,0.017518]
[1726082220772,0.1,57635.0,57627.0,0.173529]
[1726082220977,0.03916271,57637.0,57623.0,0.02999528]
[1726082220978,0.347026,57633.0,57623.0,0.02999528]
[1726082221186,0.173538,57625.0,57620.0,0.17355]
[1726082221416,0.00433873,57632.0,57622.0,0.173542]
[1726082221417,0.173527,57628.0,57622.0,0.173542]
[1726082221617,0.173532,57626.0,57622.0,0.2270697]
[1726082221838,0.520598,57626.0,57625.0,0.001]
[1726082222035,0.867663,57626.0,57625.0,0.001]
[1726082222248,1.314728,57626.0,57625.0,0.001]
[1726082222449,1.52034353,57626.0,57625.0,0.001]
[1726082222666,1.52034353,57626.0,57619.0,0.001636]
[1726082222667,0.867752,57620.0,57619.0,0.001636]
[1726082222878,1.106152,57620.0,57619.0,0.001636]
[1726082223317,0.2384,57620.0,57619.0,0.001636]
[1726082223490,0.1384,57620.0,57619.0,0.001636]
[1726082223880,0.001,57626.0,57619.0,0.175189]
[1726082224106,0.0826,57625.0,57619.0,0.001636]
[1726082224370,0.001,57626.0,57619.0,0.25586527]
[1726082224578,0.001,57626.0,57621.0,0.173545]
[1726082224780,0.001,57626.0,57625.0,0.009]
[1726082225006,0.87200067,57626.0,57625.0,0.009]
[1726082225227,0.87200067,57626.0,57619.0,0.001636]
[1726082225228,0.00433867,57626.0,57619.0,0.001636]
[1726082225454,0.520651,57620.0,57619.0,0.013636]
[1726082225755,1.352453,57620.0,57619.0,0.013636]
[1726082225988,1.352453,57620.0,57610.0,0.001638]
[1726082225989,1.270042,57611.0,57610.0,0.001638]
[1726082226218,1.89849577,57611.0,57610.0,0.001638]
[1726082226437,2.05849577,57611.0,57610.0,0.001638]
[1726082226682,0.03,57602.0,57600.0,0.001638]
[1726082226900,1.34440204,57602.0,57600.0,0.001638]
[1726082227133,1.109425,57602.0,57600.0,0.001638]
[1726082227367,1.162425,57602.0,57600.0,0.001638]
[1726082227592,1.78727051,57602.0,57600.0,0.001638]
[1726082227828,1.81449489,57602.0,57600.0,0.001638]
[1726082228351,1.15964938,57602.0,57600.0,0.001638]
[1726082228565,1.16464938,57602.0,57601.0,0.002638]
[1726082229012,1.15964938,57602.0,57601.0,0.001638]
[1726082229237,0.27362438,57602.0,57601.0,0.002638]
[1726082229468,0.44722938,57602.0,57601.0,0.002638]
[1726082229734,0.03522438,57602.0,57601.0,0.176246]
[1726082229921,0.008,57602.0,57601.0,0.528462]
[1726082230152,0.0606,57607.0,57606.0,0.173593]
[1726082230386,0.0606,57607.0,57602.0,0.347209]
[1726082230606,0.0804,57610.0,57601.0,0.011638]
[1726082230858,0.347177,57608.0,57601.0,0.011638]
[1726082231082,0.08474049,57610.0,57601.0,0.011638]
[1726082231083,0.0804,57610.0,57601.0,0.011638]
[1726082231305,0.0627,57612.0,57601.0,0.011638]
[1726082231306,0.1,57611.0,57605.0,0.173594]
[1726082231519,0.1,57611.0,57606.0,0.173591]
[1726082231746,0.1,57611.0,57602.0,0.0362145]
[1726082231961,0.0627,57612.0,57601.0,0.001638]
[1726082232199,0.001,57602.0,57601.0,0.185246]
[1726082232408,0.001,57602.0,57601.0,0.5970362]
[1726082232624,0.173582,57610.0,57603.0,0.347202]
[1726082232842,0.409853,57612.0,57606.0,0.173592]
[1726082233055,0.173581,57610.0,57606.0,0.173592]
[1726082233270,0.0627,57612.0,57606.0,0.347182]
[1726082233551,0.0627,57612.0,57602.0,0.002]
[1726082233552,0.40985,57612.0,57602.0,0.002]
[1726082233773,0.173584,57609.0,57605.0,0.173594]
[1726082234017,0.173584,57609.0,57601.0,0.001638]
[1726082234018,0.520815,57602.0,57601.0,0.001638]
[1726082234267,0.543815,57602.0,57601.0,0.001638]
[1726082234490,1.78947051,57602.0,57601.0,0.001638]
[1726082234925,1.80136605,57602.0,57601.0,0.001638]
[1726082235145,1.75947051,57602.0,57601.0,0.015638]
[1726082235373,1.134625,57602.0,57601.0,0.015638]
[1726082235598,1.135625,57602.0,57601.0,0.011638]
[1726082236073,1.134625,57602.0,57601.0,0.001638]
[1726082236291,1.117625,57602.0,57601.0,0.008638]
[1726082236721,1.112625,57602.0,57601.0,0.007638]
[1726082236963,1.112625,57602.0,57601.0,0.001638]
[1726082236964,1.115625,57602.0,57601.0,0.001638]
[1726082237188,1.120625,57602.0,57601.0,0.001638]
[1726082237469,0.009,57602.0,57601.0,0.001638]
[1726082237674,0.009,57602.0,57601.0,0.522462]
[1726082237888,0.009,57602.0,57601.0,0.17915305]
[1726082238550,0.009,57602.0,57601.0,0.00554505]
[1726082238813,0.005,57602.0,57601.0,0.00554505]
[1726082239023,0.005,57602.0,57601.0,0.175246]
[1726082239244,0.173596,57605.0,57601.0,0.18615305]
[1726082239469,0.001,57602.0,57601.0,0.01154505]
[1726082239692,0.94896589,57602.0,57601.0,0.01154505]
[1726082239914,1.39517589,57602.0,57601.0,0.01954505]
[1726082240166,1.04796589,57602.0,57601.0,0.001638]
[1726082240382,1.04896589,57602.0,57601.0,0.025638]
[1726082240595,1.044625,57602.0,57601.0,0.025638]
[1726082240832,1.07184798,57602.0,57601.0,0.011638]
[1726082242373,0.12164439,57602.0,57601.0,0.011638]
[1726082242607,0.001,57602.0,57601.0,0.185246]
[1726082242871,0.001,57602.0,57601.0,0.025638]
[1726082243063,0.521815,57602.0,57601.0,0.02951592]
[1726082243504,0.174605,57602.0,57601.0,0.025638]
[1726082243729,0.001,57602.0,57601.0,0.02951592]
[1726082244475,0.54252559,57602.0,57601.0,0.02951592]
[1726082244732,0.19531559,57602.0,57601.0,0.02951592]
[1726082244939,0.02171059,57602.0,57601.0,0.025638]
[1726082245367,0.02171059,57602.0,57601.0,0.02951592]
[1726082245789,0.19531559,57602.0,57601.0,0.02951592]
[1726082245999,0.02171059,57602.0,57601.0,0.20312392]
[1726082246238,0.02171059,57602.0,57601.0,1.33485811]
[1726082246464,0.001,57602.0,57601.0,1.33485811]
[1726082246892,0.001,57602.0,57601.0,0.55033992]
[1726082247340,0.001,57602.0,57601.0,0.89755592]
[1726082248718,0.001,57602.0,57601.0,0.97515592]
[1726082248935,0.001,57602.0,57601.0,1.38367192]
[1726082249625,0.4721,57621.0,57601.0,1.38367192]
[1726082249626,0.4721,57621.0,57618.0,0.173554]
[1726082249891,0.02089362,57620.0,57618.0,0.347113]
[1726082250081,0.02721414,57623.0,57619.0,0.17740255]
[1726082250082,0.173545,57622.0,57619.0,0.17740255]
[1726082250310,0.02090558,57621.0,57619.0,0.17740255]
[1726082250560,0.02090558,57620.0,57619.0,0.173553]
[1726082250778,0.02090558,57620.0,57605.0,0.1389]
[1726082250779,0.347114,57618.0,57605.0,0.1389]
[1726082251002,0.347114,57618.0,57605.0,0.20184268]
[1726082251003,0.347129,57616.0,57605.0,0.20184268]
[1726082251229,0.001,57621.0,57605.0,0.1389]
[1726082251230,0.173569,57614.0,57605.0,0.1389]
[1726082251452,0.00433985,57619.0,57605.0,0.1389]
[1726082251668,0.87210685,57619.0,57618.0,0.013]
[1726082251882,0.173558,57618.0,57613.0,0.17357]
[1726082252091,0.02088295,57617.0,57614.0,0.173568]
[1726082252304,0.02088295,57617.0,57613.0,0.173571]
[1726082252538,0.02088295,57616.0,57613.0,0.173571]
[1726082252761,0.02088295,57615.0,57614.0,0.173568]
[1726082252976,0.347095,57622.0,57615.0,0.173565]
[1726082253185,0.36797729,57621.0,57613.0,0.17357]
[1726082253398,0.173558,57618.0,57614.0,0.013]
[1726082253604,0.02087929,57617.0,57614.0,0.013]
[1726082253809,0.19443829,57617.0,57614.0,0.013]
[1726082254032,0.02087929,57616.0,57614.0,0.027]
[1726082254216,0.19444229,57616.0,57614.0,0.027]
[1726082254469,0.173559,57618.0,57613.0,0.173571]
[1726082254654,0.02090608,57617.0,57614.0,0.014]
[1726082254882,0.02090608,57616.0,57614.0,0.014]
[1726082255100,0.173559,57618.0,57613.0,0.173571]
[1726082255319,0.02089438,57617.0,57614.0,0.014]
[1726082255786,0.520696,57615.0,57614.0,0.014]
[1726082256010,0.54159038,57615.0,57614.0,0.014]
[1726082256233,0.88872138,57615.0,57614.0,0.014]
[1726082256464,0.19445733,57615.0,57614.0,0.014]
[1726082256654,0.54158762,57615.0,57614.0,0.014]
[1726082256924,0.02089162,57615.0,57614.0,0.361137]
[1726082257156,0.56114973,57633.0,57623.0,0.173541]
[1726082257378,0.02092287,57624.0,57623.0,0.173541]
[1726082257613,0.51989914,57640.0,57632.0,0.173513]
[1726082257614,0.4721,57638.0,57632.0,0.173513]
[1726082257836,0.173503,57636.0,57632.0,0.173513]
[1726082258078,0.02095694,57635.0,57629.0,0.27763551]
[1726082258312,0.173485,57642.0,57636.0,0.520507]
[1726082258533,0.173476,57645.0,57636.0,1.007012]
[1726082258992,0.4721,57649.0,57636.0,1.354017]
[1726082259670,0.173471,57647.0,57636.0,1.007012]
[1726082259890,0.4721,57649.0,57636.0,1.007012]
[1726082260130,0.645564,57649.0,57636.0,1.007012]
[1726082260331,0.4721,57649.0,57636.0,1.007012]
[1726082260568,0.645565,57649.0,57636.0,1.021012]
[1726082261007,0.4721,57649.0,57636.0,1.021012]
[1726082261428,0.645565,57649.0,57636.0,1.14597327]
[1726082261649,0.173467,57648.0,57636.0,1.14597327]
[1726082261953,0.4721,57649.0,57636.0,1.49297827]
[1726082262099,0.4721,57649.0,57636.0,1.14597327]
[1726082262525,0.645564,57649.0,57636.0,1.14597327]
[1726082262940,0.4721,57649.0,57636.0,1.50697827]
[1726082263945,0.173471,57647.0,57636.0,1.15997327]
[1726082264144,0.4721,57649.0,57636.0,1.15997327]
[1726082264556,0.4721,57649.0,57636.0,1.16368697]
[1726082264792,0.4721,57649.0,57636.0,1.0387257]
[1726082264793,0.173473,57646.0,57636.0,1.0387257]
[1726082265010,0.17347,57647.0,57636.0,1.0387257]
[1726082265250,0.00433717,57647.0,57636.0,1.0387257]
[1726082265442,0.17348,57644.0,57636.0,1.0387257]
[1726082266036,0.17348,57644.0,57636.0,1.0247257]
[1726082266198,0.173473,57646.0,57636.0,1.0247257]
[1726082266392,0.173473,57646.0,57636.0,1.0387257]
[1726082266616,0.173473,57646.0,57636.0,1.0247257]
[1726082266801,0.728363,57649.0,57636.0,1.52290477]
[1726082267001,0.173471,57647.0,57636.0,1.17589977]
[1726082267220,0.173474,57646.0,57636.0,1.0247257]
[1726082267429,0.173474,57646.0,57636.0,1.0387257]
[1726082267848,0.173474,57646.0,57636.0,1.0247257]
[1726082268052,0.17347,57647.0,57636.0,1.0247257]
[1726082268259,0.173472,57646.0,57636.0,1.0357257]
[1726082268475,0.901832,57649.0,57636.0,1.0357257]
[1726082268891,0.173469,57648.0,57636.0,1.0357257]
[1726082269105,0.173472,57647.0,57636.0,1.0247257]
[1726082269311,0.173472,57647.0,57636.0,1.0387257]
[1726082269573,0.173472,57647.0,57636.0,1.0247257]
[1726082269783,0.173473,57646.0,57636.0,1.10623074]
[1726082269999,0.901832,57649.0,57636.0,1.10623074]
[1726082270214,0.173472,57647.0,57636.0,1.09223074]
[1726082270421,0.901832,57649.0,57636.0,1.09223074]
[1726082270422,0.173473,57646.0,57636.0,1.0107257]
[1726082270639,0.92903183,57649.0,57636.0,1.0247257]
[1726082270865,0.173471,57647.0,57636.0,1.0107257]
[1726082271324,0.75556483,57649.0,57636.0,1.3827307]
[1726082271557,0.173473,57646.0,57636.0,1.0357257]
[1726082271796,0.173473,57646.0,57636.0,1.0247257]
[1726082272031,0.17347,57647.0,57636.0,1.0247257]
[1726082272258,0.173472,57646.0,57636.0,1.0387257]
[1726082272479,0.173469,57647.0,57636.0,1.3857307]
[1726082272703,0.92903083,57649.0,57636.0,1.0387257]
[1726082272944,0.58209983,57649.0,57636.0,1.0387257]
[1726082273163,0.17347,57647.0,57636.0,1.0387257]
[1726082274338,0.17347,57647.0,57636.0,1.3857307]
[1726082274558,0.92903083,57649.0,57636.0,1.0387257]
[1726082274559,0.173473,57646.0,57636.0,1.0387257]
[1726082274773,0.173469,57647.0,57636.0,1.0387257]
[1726082275203,0.346942,57647.0,57636.0,1.0387257]
[1726082275413,0.92903083,57649.0,57636.0,1.0387257]
[1726082275894,0.17347,57647.0,57636.0,1.0387257]
[1726082276555,0.92903083,57649.0,57636.0,1.0387257]
[1726082276807,0.173472,57646.0,57636.0,1.0387257]
[1726082277019,0.17347,57647.0,57636.0,1.3857307]
[1726082277697,0.75556483,57649.0,57636.0,1.0387257]
[1726082277913,0.49929983,57649.0,57636.0,1.0387257]
[1726082278142,0.17347,57647.0,57636.0,1.0387257]
[1726082278393,0.49929983,57649.0,57636.0,1.0387257]
[1726082278588,0.173466,57648.0,57636.0,1.3857307]
[1726082278812,0.49929983,57649.0,57636.0,1.3857307]
[1726082279030,0.84622983,57649.0,57636.0,1.0387257]
[1726082279263,0.173466,57648.0,57636.0,1.0387257]
[1726082279496,0.17347,57647.0,57636.0,1.0387257]
[1726082279741,0.49929983,57649.0,57636.0,1.0387257]
[1726082279983,0.173468,57648.0,57636.0,1.3857307]
[1726082280217,0.17347,57647.0,57636.0,1.54445055]
[1726082280440,0.346943,57647.0,57636.0,1.19744555]
[1726082280683,0.173473,57646.0,57636.0,1.0387257]
[1726082280895,0.49929983,57649.0,57636.0,1.0387257]
[1726082281107,0.67276383,57649.0,57636.0,1.0387257]
[1726082281325,0.67276283,57649.0,57636.0,1.3857307]
[1726082281773,0.49929983,57649.0,57636.0,1.3857307]
[1726082282253,0.49929983,57649.0,57636.0,1.7327357]
[1726082282473,0.02719983,57649.0,57636.0,1.7627357]
[1726082282699,0.0037886,57650.0,57636.0,1.7627357]
[1726082282910,0.0037886,57650.0,57636.0,2.1697407]
[1726082283166,0.0037886,57650.0,57636.0,1.99890525]
[1726082283623,0.0037886,57650.0,57636.0,1.98490525]
[1726082283843,0.0037886,57650.0,57636.0,1.99876365]
[1726082284291,0.0037886,57650.0,57636.0,2.01276365]
[1726082284953,0.0037886,57650.0,57636.0,2.00090525]
[1726082285844,0.0037886,57650.0,57636.0,2.17684543]
[1726082286094,0.0037886,57650.0,57636.0,2.29984543]
[1726082286327,0.0037886,57650.0,57636.0,2.64685043]
[1726082286761,0.0037886,57650.0,57646.0,0.002]
[1726082286981,0.0037886,57650.0,57649.0,1.21368479]
[1726082287191,0.0037886,57650.0,57649.0,2.08914496]
[1726082287415,0.0037886,57650.0,57649.0,2.43607196]
[1726082287642,0.0037886,57650.0,57649.0,2.63501214]
[1726082287873,0.0037886,57650.0,57649.0,2.28808514]
[1726082288354,0.0037886,57650.0,57649.0,2.05714496]
[1726082288627,0.0037886,57650.0,57649.0,2.07114496]
[1726082288854,0.0037886,57650.0,57649.0,2.08714496]
[1726082289322,0.0037886,57650.0,57649.0,2.08514496]
[1726082290196,0.0037886,57650.0,57649.0,2.05714496]
[1726082290420,0.0037886,57650.0,57649.0,2.1604866]
[1726082290862,0.0037886,57650.0,57649.0,2.1464866]
[1726082291082,0.0037886,57650.0,57649.0,2.1484866]
[1726082291304,0.0037886,57650.0,57649.0,2.1604866]
[1726082291545,0.0037886,57650.0,57649.0,0.88496067]
[1726082291986,0.0037886,57650.0,57649.0,1.21788767]
[1726082292206,0.0037886,57650.0,57649.0,1.23188767]
[1726082293790,0.0037886,57650.0,57649.0,1.23388767]
[1726082294009,0.0046076,57650.0,57649.0,1.37178767]
[1726082294235,0.0046076,57650.0,57649.0,1.90888422]
[1726082294465,0.0046076,57650.0,57649.0,1.88088422]
[1726082294664,0.0046076,57650.0,57649.0,1.89488422]
[1726082294873,0.0046076,57650.0,57649.0,1.90888422]
[1726082295777,0.0046076,57650.0,57649.0,1.55995722]
[1726082296446,0.0046076,57650.0,57649.0,1.30618767]
[1726082297330,0.0046076,57650.0,57649.0,1.63911467]
[1726082297987,0.0046076,57650.0,57649.0,1.65311467]
[1726082298191,0.0046076,57650.0,57649.0,1.62511467]
[1726082298424,0.0046076,57650.0,57649.0,1.63911467]
[1726082298653,0.0046076,57650.0,57649.0,1.82928422]
[1726082298871,0.0046076,57650.0,57649.0,1.81728422]
[1726082299287,0.0046076,57650.0,57649.0,1.83128422]
[1726082299935,0.0046076,57650.0,57649.0,1.81728422]
[1726082300183,0.0046076,57650.0,57649.0,1.48235722]
[1726082300623,0.0046076,57650.0,57649.0,1.46835722]
[1726082301076,0.0046076,57650.0,57649.0,1.30618767]
[1726082301567,0.0046076,57650.0,57649.0,1.29218767]
[1726082301792,0.0046076,57650.0,57649.0,1.30618767]
[1726082302456,0.0046076,57650.0,57649.0,1.24588767]
[1726082303135,0.0046076,57650.0,57649.0,1.5226971]
[1726082303380,0.0046076,57650.0,57649.0,1.69886665]
[1726082304300,0.0046076,57650.0,57649.0,1.5226971]
[1726082306028,0.0046076,57650.0,57649.0,0.89896067]
[1726082306250,0.0046076,57650.0,57649.0,1.1757701]
[1726082306465,0.0046076,57650.0,57649.0,1.5226971]
[1726082306685,0.0046076,57650.0,57649.0,1.1757701]
[1726082307106,0.0046076,57650.0,57649.0,1.33709981]
[1726082307336,0.0046076,57650.0,57649.0,1.68402681]
[1726082308386,0.0046076,57650.0,57649.0,1.68602681]
[1726082309065,0.0046076,57650.0,57649.0,1.68402681]
[1726082312222,0.0046076,57650.0,57649.0,1.5226971]
[1726082312481,0.0046076,57650.0,57649.0,1.62317298]
[1726082312721,0.0046076,57650.0,57649.0,1.9906598]
[1726082313188,0.0046076,57650.0,57649.0,1.9606598]
[1726082314334,0.0046076,57650.0,57649.0,1.9626598]
[1726082314593,0.0046076,57650.0,57649.0,2.13882935]
[1726082315256,0.000819,57662.0,57661.0,0.867135]
[1726082315502,0.000819,57662.0,57661.0,1.56083413]
[1726082315795,0.000819,57662.0,57661.0,1.56440907]
[1726082316039,0.000819,57662.0,57661.0,1.91126307]
[1726082316279,0.000819,57662.0,57661.0,2.08743262]
[1726082316500,0.000819,57662.0,57661.0,2.10143262]
[1726082316732,0.000819,57662.0,57661.0,2.08743262]
[1726082317187,0.000819,57662.0,57661.0,2.11443262]
[1726082317660,0.000819,57662.0,57661.0,2.7272268]
[1726082317891,0.000819,57662.0,57661.0,2.8372268]
[1726082318145,0.000819,57662.0,57661.0,2.8532268]
[1726082318621,0.000819,57662.0,57661.0,2.8392268]
[1726082318899,0.000819,57662.0,57661.0,1.72391794]
[1726082319112,0.000819,57662.0,57661.0,1.64311794]
[1726082319340,0.000819,57662.0,57661.0,1.65711794]
[1726082319599,0.000819,57662.0,57661.0,1.64311794]
[1726082319826,0.000819,57662.0,57661.0,1.65711794]
[1726082320079,0.000819,57662.0,57661.0,1.83328749]
[1726082320309,0.000819,57662.0,57661.0,1.81928749]
[1726082320565,0.000819,57662.0,57661.0,1.83328749]
[1726082320795,0.000819,57662.0,57661.0,1.81928749]
[1726082321016,0.000819,57662.0,57661.0,1.83328749]
[1726082321724,0.000819,57662.0,57661.0,2.39508167]
[1726082321956,0.000819,57662.0,57661.0,2.47228167]
[1726082322193,0.000819,57662.0,57661.0,2.54628167]
[1726082322440,0.000819,57665.0,57664.0,0.95909]
[1726082322677,0.000819,57665.0,57664.0,1.84531131]
[1726082322933,0.000819,57665.0,57664.0,2.88935029]
[1726082323176,0.000819,57676.0,57664.0,2.88935029]
[1726082323177,0.000819,57676.0,57675.0,0.54583013]
[1726082323393,0.000819,57676.0,57675.0,1.64672314]
[1726082323607,0.000819,57676.0,57675.0,2.59920332]
[1726082323828,0.000819,57676.0,57675.0,2.7027343]
[1726082324058,0.0032903,57683.0,57678.0,0.89688]
[1726082324287,0.0032903,57683.0,57678.0,1.91522418]
[1726082324530,0.0032903,57683.0,57678.0,2.09139373]
[1726082324763,0.0032903,57683.0,57678.0,2.43814573]
[1726082325007,0.0032903,57683.0,57678.0,2.44167671]
[1726082325467,0.0032903,57683.0,57678.0,2.45567671]
[1726082325688,0.0032903,57683.0,57678.0,2.46967671]
[1726082326161,0.0032903,57683.0,57678.0,2.55567671]
[1726082326384,0.0032903,57683.0,57678.0,2.58155845]
[1726082326619,0.0032903,57683.0,57678.0,2.22092471]
[1726082326833,0.0032903,57683.0,57678.0,2.20692471]
[1726082327364,0.0032903,57683.0,57678.0,2.19492471]
[1726082327552,0.0032903,57683.0,57682.0,1.16306513]
[1726082327790,0.0032903,57683.0,57682.0,2.34953086]
[1726082328020,0.0037886,57685.0,57684.0,0.95879]
[1726082328238,0.0037886,57685.0,57684.0,1.56764618]
[1726082328460,0.0037886,57685.0,57684.0,2.43627818]
[1726082328674,0.0037886,57702.0,57687.0,1.10009013]
[1726082328898,0.0037886,57702.0,57687.0,2.12950852]
[1726082329143,0.0037886,57702.0,57687.0,2.13289021]
[1726082329776,0.0037886,57702.0,57687.0,2.70098821]
[1726082330047,0.0037886,57702.0,57687.0,2.80098821]
[1726082330280,0.0037886,57702.0,57692.0,0.89867]
[1726082330519,0.0037886,57702.0,57694.0,0.97372913]
[1726082330758,0.0037886,57702.0,57694.0,1.79129713]
[1726082330995,0.0037886,57702.0,57694.0,1.79465997]
[1726082331452,0.0040096,57702.0,57694.0,1.56331484]
[1726082331672,0.0037886,57702.0,57694.0,1.76465997]
[1726082331895,0.0037886,57702.0,57694.0,1.94082952]
[1726082333508,0.0037886,57702.0,57694.0,1.96882952]
[1726082333754,0.0037886,57702.0,57694.0,2.2987697]
[1726082333997,0.0037886,57702.0,57694.0,2.8442047]
[1726082334435,0.0037886,57702.0,57694.0,2.4967697]
[1726082334652,0.0037886,57702.0,57694.0,2.5037157]
[1726082334858,0.0037886,57702.0,57694.0,2.4897157]
[1726082335076,0.0037886,57702.0,57694.0,2.4904947]
[1726082335296,0.0037886,57702.0,57694.0,2.5044947]
[1726082335735,0.0037886,57702.0,57694.0,2.4904947]
[1726082335954,0.0037886,57702.0,57694.0,2.4764947]
[1726082336170,0.0037886,57702.0,57694.0,2.50042945]
[1726082336404,0.0037886,57702.0,57694.0,2.51442945]
[1726082336620,0.0037886,57702.0,57694.0,2.50142945]
[1726082336854,0.0037886,57702.0,57694.0,2.50220845]
[1726082337068,0.0037886,57702.0,57694.0,2.51620845]
[1726082337287,0.0037886,57702.0,57694.0,2.51542945]
[1726082337520,0.0037886,57702.0,57694.0,2.51442945]
[1726082337766,0.0037886,57702.0,57694.0,2.51620845]
[1726082337983,0.0037886,57702.0,57694.0,2.51442945]
[1726082338433,0.0037886,57702.0,57694.0,2.51542945]
[1726082339559,0.0037886,57702.0,57694.0,2.51442945]
[1726082340020,0.0037886,57702.0,57694.0,2.07577552]
[1726082340235,0.0629,57699.0,57694.0,1.72217352]
[1726082340504,0.0001,57699.0,57694.0,1.75217352]
[1726082340740,0.0001,57699.0,57694.0,2.3347697]
[1726082340959,0.0001,57699.0,57694.0,2.3047697]
[1726082341204,0.0001,57699.0,57694.0,2.09882952]
[1726082343938,0.0001,57699.0,57694.0,2.09982952]
[1726082344156,0.0001,57699.0,57694.0,2.10060852]
[1726082344638,0.0001,57699.0,57694.0,2.09882952]
[1726082344863,0.0001,57699.0,57694.0,0.89800284]
[1726082344864,0.0645,57697.0,57694.0,0.89800284]
[1726082345522,0.0645,57697.0,57694.0,0.55134684]
[1726082345756,0.0645,57697.0,57694.0,0.53734684]
[1726082345990,0.0645,57697.0,57694.0,0.52334684]
[1726082346229,0.000221,57696.0,57694.0,0.89800284]
[1726082346465,0.000221,57696.0,57694.0,0.88400284]
[1726082346691,0.0645,57697.0,57694.0,0.99393764]
[1726082347212,0.0645,57697.0,57694.0,0.88400284]
[1726082347446,0.000221,57696.0,57694.0,0.88400284]
[1726082347659,0.000221,57696.0,57694.0,0.53734684]
[1726082348135,0.000221,57696.0,57694.0,0.03136284]
[1726082348136,0.34769,57695.0,57694.0,0.03136284]
[1726082348356,1.00929876,57695.0,57694.0,0.03136284]
[1726082348597,1.004965,57695.0,57694.0,0.03136284]
[1726082348830,1.004965,57695.0,57694.0,0.028]
[1726082349045,0.138119,57695.0,57694.0,0.028]
[1726082349283,0.138119,57695.0,57694.0,0.5854513]
[1726082349284,0.13834,57695.0,57694.0,0.5854513]
[1726082349738,0.13834,57695.0,57694.0,0.58852307]
[1726082349968,1.004965,57695.0,57694.0,0.03107177]
[1726082350192,1.004965,57695.0,57682.0,0.001636]
[1726082350193,0.137521,57683.0,57682.0,0.001636]
[1726082351294,0.137521,57683.0,57682.0,0.175]
[1726082351539,0.137521,57683.0,57682.0,0.0538096]
[1726082351755,0.137521,57683.0,57682.0,0.001636]
[1726082352469,0.137521,57683.0,57682.0,0.530728]
[1726082352687,0.13831239,57683.0,57682.0,0.195]
[1726082352907,0.13831239,57683.0,57682.0,0.186]
[1726082353124,0.13831239,57683.0,57682.0,0.532728]
[1726082353338,0.13931239,57683.0,57682.0,0.31562793]
[1726082353604,0.13731239,57683.0,57682.0,0.29362793]
[1726082353825,0.13731239,57683.0,57682.0,0.186]
[1726082354054,0.13831239,57683.0,57682.0,0.197]
[1726082354259,0.13831239,57683.0,57682.0,0.023636]
[1726082354741,0.13831239,57683.0,57682.0,0.93383]
[1726082354960,0.06411239,57683.0,57682.0,0.601102]
[1726082355180,0.06411239,57683.0,57682.0,0.08101]
[1726082355413,0.06411239,57683.0,57682.0,0.254374]
[1726082355624,0.06411239,57683.0,57682.0,0.2]
[1726082355860,0.06411239,57683.0,57682.0,0.026636]
[1726082357278,0.23747339,57683.0,57682.0,0.026636]
[1726082357516,0.58419539,57683.0,57682.0,0.026636]
[1726082357759,1.35453939,57683.0,57682.0,0.02943159]
[1726082357980,1.38172133,57683.0,57682.0,0.026636]
[1726082358209,1.40349277,57683.0,57682.0,0.026636]
[1726082358441,1.40349277,57683.0,57682.0,0.012636]
[1726082358442,1.40249277,57683.0,57682.0,0.012636]
[1726082358815,1.40248573,57683.0,57682.0,0.009636]
[1726082359022,1.40348573,57683.0,57682.0,0.020636]
[1726082359241,1.38072133,57683.0,57682.0,0.012636]
[1726082359451,1.37972133,57683.0,57682.0,0.001636]
[1726082359686,1.38772133,57683.0,57682.0,0.001636]
[1726082360133,1.39950441,57683.0,57682.0,0.001636]
[1726082363522,1.05278241,57683.0,57682.0,0.001636]
[1726082364388,1.02560047,57683.0,57682.0,0.001636]
[1726082364608,1.02060047,57683.0,57682.0,0.001636]
[1726082365017,1.02560047,57683.0,57682.0,0.001636]
[1726082365236,1.02641847,57683.0,57682.0,0.001636]
[1726082365446,1.01841847,57683.0,57682.0,0.001636]
[1726082365671,1.36914047,57683.0,57682.0,0.001636]
[1726082365891,1.02241847,57683.0,57682.0,0.001636]
[1726082366106,1.01941847,57683.0,57682.0,0.001636]
[1726082366328,1.01941847,57683.0,57682.0,0.003636]
[1726082366596,1.36614047,57683.0,57682.0,0.003636]
[1726082366812,1.01941847,57683.0,57682.0,0.003636]
[1726082367481,1.0466023,57683.0,57682.0,0.003636]
[1726082367970,0.68809722,57683.0,57682.0,0.003636]
[1726082368426,1.38154122,57683.0,57682.0,0.003636]
[1726082369090,1.40454122,57683.0,57682.0,0.003636]
[1726082370046,1.03481922,57683.0,57682.0,0.003636]
[1726082370494,0.20237522,57683.0,57682.0,0.003636]
[1726082370756,0.02901422,57683.0,57682.0,0.1947008]
[1726082370971,0.02901422,57683.0,57682.0,0.54430762]
[1726082371195,0.02901422,57683.0,57682.0,0.52660682]
[1726082371634,0.20116115,57683.0,57682.0,0.00651482]
[1726082371878,0.20116115,57683.0,57682.0,0.00451482]
[1726082372079,0.20116115,57683.0,57682.0,0.02751482]
[1726082372080,0.00261632,57683.0,57682.0,0.02751482]
[1726082372305,0.00261632,57683.0,57682.0,0.544728]
[1726082372523,0.00241632,57683.0,57682.0,0.25563683]
[1726082372973,0.00141632,57683.0,57682.0,0.06927283]
[1726082373210,0.00141632,57683.0,57682.0,0.01550965]